bitfinex-derivatives/quotes_ETHF0:USTF0_20260222
["timestamp","ask_amount","ask_price","bid_price","bid_amount"]
[1771772081117,0.54571157,1950.7,1949.3,0.59212722]
[1771772081311,0.54571157,1950.4,1949.3,0.59212722]
[1771772081508,0.54571157,1950.4,1949.4,0.59212722]
[1771772082212,0.55090952,1950.4,1949.4,0.59862457]
[1771772090613,0.54571157,1950.1,1949.4,0.00649735]
[1771772091214,0.54571157,1950.1,1949.4,0.59862457]
[1771772099427,0.54571157,1950.3,1949.4,0.59862457]
[1771772102728,0.54571157,1950.3,1949.5,0.59212722]
[1771772108828,0.58857883,1950.2,1949.5,0.59212722]
[1771772111236,0.58857883,1950.1,1949.5,0.59212722]
[1771772115036,0.54743749,1949.9,1949.4,0.00649735]
[1771772115340,0.54743749,1949.9,1949.4,0.58549821]
[1771772119147,0.54743749,1950.1,1949.6,0.57900086]
[1771772124143,0.54743749,1950.1,1949.4,0.58549821]
[1771772124343,4.29529657,1950.4,1949.0,0.57900086]
[1771772124344,0.54743749,1949.7,1949.0,0.57900086]
[1771772125236,0.54743749,1950.3,1949.2,0.57900086]
[1771772125437,0.54743749,1950.2,1949.4,0.57900086]
[1771772125845,0.54743749,1950.0,1949.4,0.57900086]
[1771772132651,0.54743749,1950.0,1949.6,0.57900086]
[1771772133254,0.54743749,1950.3,1949.6,0.57900086]
[1771772136652,0.54743749,1950.3,1949.8,0.57900086]
[1771772138548,0.57999493,1950.2,1949.5,7.02301507]
[1771772138755,0.57999493,1950.0,1949.5,0.57250027]
[1771772142656,0.57999493,1950.0,1949.5,7.02301507]
[1771772142862,0.57999493,1950.0,1949.5,0.57250027]
[1771772144465,0.57999493,1950.0,1949.6,7.02301507]
[1771772144665,1.17874885,1949.9,1949.5,0.60564517]
[1771772144865,1.17874885,1950.1,1949.5,0.60564517]
[1771772145065,1.17874885,1950.3,1949.5,0.60564517]
[1771772145266,0.00519795,1950.4,1949.5,0.60564517]
[1771772145468,5.86386035,1950.3,1949.5,0.60564517]
[1771772145766,1.17874885,1950.3,1949.5,0.60564517]
[1771772146564,0.00519795,1950.4,1949.5,0.60564517]
[1771772146765,5.88935313,1950.3,1949.5,0.60564517]
[1771772146967,0.00519795,1950.4,1949.5,0.60564517]
[1771772147168,5.8893626,1950.3,1949.5,0.60564517]
[1771772147362,0.00519795,1950.4,1949.5,0.60564517]
[1771772147559,5.88934891,1950.3,1949.5,0.60564517]
[1771772147767,0.00519795,1950.4,1949.5,0.60564517]
[1771772147969,5.88932997,1950.3,1949.5,0.60564517]
[1771772148169,0.00519795,1950.4,1949.5,0.60564517]
[1771772148470,5.88934473,1950.3,1949.5,0.60564517]
[1771772148670,0.00519795,1950.4,1949.5,0.60564517]
[1771772148871,5.88933666,1950.3,1949.5,0.60564517]
[1771772149069,0.00519795,1950.4,1949.5,0.60564517]
[1771772149271,0.00519795,1950.4,1950.0,0.61866908]
[1771772149468,1.17874885,1950.9,1950.0,0.61866908]
[1771772149669,5.88816073,1950.8,1950.0,0.61866908]
[1771772149873,1.17874885,1950.9,1950.0,0.61866908]
[1771772150373,1.18276187,1950.9,1950.0,0.61866908]
[1771772151376,0.00401302,1950.9,1950.6,0.62528935]
[1771772151572,0.00401302,1950.9,1950.6,0.62975893]
[1771772151766,1.17874885,1951.5,1950.8,0.62528935]
[1771772152469,40.8,1951.7,1951.1,0.62528935]
[1771772152669,40.8059247,1951.7,1951.1,0.62528935]
[1771772153569,0.0059247,1951.7,1951.1,0.62528935]
[1771772155471,1.18467355,1951.7,1951.1,0.62528935]
[1771772159470,1.18467355,1951.7,1950.6,0.00446958]
[1771772159471,2.3574977,1951.2,1950.6,0.00446958]
[1771772159672,0.47655924,1951.1,1950.6,0.57696985]
[1771772159876,0.0059247,1951.7,1951.1,0.57250027]
[1771772160181,0.47655924,1951.6,1951.1,0.57250027]
[1771772162171,0.49189934,1951.7,1951.1,0.57250027]
[1771772162375,0.48597464,1952.0,1951.3,0.57250027]
[1771772163374,0.48063903,1951.9,1951.3,0.57250027]
[1771772163573,0.48063903,1951.5,1950.7,0.57250027]
[1771772163878,0.48063903,1951.5,1950.9,0.57250027]
[1771772164479,0.48063903,1951.3,1950.9,0.57250027]
[1771772166476,0.48063903,1951.3,1950.7,0.57250027]
[1771772175682,0.48063903,1951.3,1950.6,0.59084122]
[1771772175889,0.55307541,1951.0,1950.2,0.58637164]
[1771772176790,0.55307541,1951.0,1950.2,0.59267221]
[1771772179692,0.55307541,1951.6,1950.4,0.58637164]
[1771772179891,0.55307541,1951.6,1950.7,0.58637164]
[1771772188602,1.17727717,1951.8,1950.7,0.58637164]
[1771772188603,0.55307541,1951.4,1950.7,0.58637164]
[1771772193003,0.55307541,1951.4,1950.4,0.58637164]
[1771772213325,0.56689354,1951.2,1950.4,0.58637164]
[1771772214825,0.56689354,1951.2,1950.4,1.76364881]
[1771772215017,0.56689354,1951.2,1950.5,0.59277372]
[1771772218925,0.56689354,1951.1,1950.2,8.91866779]
[1771772219134,0.56689354,1951.1,1950.3,0.59277372]
[1771772223332,0.56689354,1950.9,1950.3,0.59277372]
[1771772231132,0.56689354,1950.9,1950.2,0.00630057]
[1771772231338,0.56689354,1950.9,1949.8,1.17727717]
[1771772231339,0.57952514,1950.5,1949.8,0.60454921]
[1771772232233,0.58504904,1950.5,1949.8,0.61121816]
[1771772233228,0.58504904,1950.5,1949.9,0.60454921]
[1771772237738,0.55686851,1950.4,1949.9,0.60454921]
[1771772239142,0.56239241,1950.5,1949.9,0.60454921]
[1771772241543,0.55686851,1950.2,1949.8,0.00666895]
[1771772241739,0.55686851,1950.2,1949.6,0.55773542]
[1771772242641,0.55686851,1950.2,1949.6,0.56225349]
[1771772242847,0.55686851,1950.0,1949.6,0.00451807]
[1771772243348,0.55686851,1950.3,1949.6,0.56225349]
[1771772244249,0.55686851,1950.1,1949.6,0.56225349]
[1771772253749,0.55686851,1950.4,1949.6,0.56225349]
[1771772254748,1.73510895,1950.3,1949.6,0.56225349]
[1771772254952,0.55686851,1950.3,1949.6,0.56225349]
[1771772255349,0.55686851,1950.1,1949.6,0.56225349]
[1771772256751,0.55686851,1950.3,1949.6,0.56225349]
[1771772257754,0.55686851,1950.4,1949.8,0.55773542]
[1771772258752,0.0055239,1950.5,1949.9,0.59193828]
[1771772259154,0.5576654,1950.5,1949.9,0.59193828]
[1771772259752,0.5521415,1950.3,1949.7,0.59193828]
[1771772260655,0.5576654,1950.5,1949.8,0.59193828]
[1771772261454,0.5576654,1950.5,1950.0,0.59193828]
[1771772262857,1.73038194,1950.3,1949.7,0.59193828]
[1771772263053,0.5521415,1950.3,1949.7,0.59193828]
[1771772263356,0.0055239,1950.5,1949.8,0.59193828]
[1771772263556,0.5576654,1950.5,1949.8,0.59193828]
[1771772266962,0.5576654,1950.5,1950.0,0.59193828]
[1771772270562,0.5521415,1950.4,1950.0,0.59193828]
[1771772273668,0.5576654,1950.5,1950.0,0.59193828]
[1771772276466,0.0055239,1950.5,1950.0,0.59193828]
[1771772276664,0.5521415,1950.8,1950.2,0.59193828]
[1771772277768,0.55799897,1950.8,1950.2,0.59193828]
[1771772281274,0.5521415,1950.6,1950.0,0.59193828]
[1771772281770,0.5521415,1950.0,1949.2,0.59193828]
[1771772281976,0.5521415,1949.9,1949.2,0.59193828]
[1771772282371,0.5521415,1949.9,1949.3,0.59193828]
[1771772282876,0.5521415,1949.9,1949.3,0.59677794]
[1771772287681,0.25642,1950.5,1949.3,0.59677794]
[1771772287682,0.5521415,1950.1,1949.3,0.59677794]
[1771772288082,0.60324664,1949.7,1949.3,0.59677794]
[1771772288387,0.60324664,1949.9,1949.3,0.59677794]
[1771772288875,0.60324664,1950.0,1949.4,0.54929345]
[1771772292275,0.25642,1950.5,1949.5,0.54929345]
[1771772292276,0.60324664,1950.1,1949.5,0.54929345]
[1771772292878,0.60324664,1950.3,1949.5,0.54929345]
[1771772294285,1.17824044,1950.4,1949.5,0.54929345]
[1771772294590,0.57373491,1950.3,1949.7,0.59208711]
[1771772295692,0.57373491,1950.7,1949.7,0.59208711]
[1771772296986,0.00585747,1950.8,1950.3,0.59208711]
[1771772305596,0.57373491,1951.1,1950.3,0.59208711]
[1771772306499,0.58004449,1951.1,1950.3,0.59208711]
[1771772307596,0.00630958,1951.1,1950.3,0.59208711]
[1771772308197,0.58004449,1951.1,1950.3,0.59208711]
[1771772311006,0.00630958,1951.1,1950.3,0.59208711]
[1771772312207,0.58004449,1951.1,1950.3,0.59208711]
[1771772315806,0.57373491,1951.0,1950.1,0.59208711]
[1771772319409,0.57373491,1951.0,1949.5,8.05593354]
[1771772319410,0.5738173,1950.7,1949.9,0.54807775]
[1771772322015,0.58012688,1951.1,1949.9,0.54807775]
[1771772323919,0.5738173,1951.0,1949.9,0.54807775]
[1771772325819,0.5738173,1951.0,1950.0,0.54807775]
[1771772326615,1.18477933,1951.1,1949.7,0.25651]
[1771772326616,0.5738173,1950.5,1949.7,8.31244354]
[1771772326818,0.5738173,1950.5,1949.8,0.54807775]
[1771772328422,0.5738173,1950.8,1950.0,0.54807775]
[1771772336926,0.5738173,1950.7,1949.9,0.54807775]
[1771772339631,0.5738173,1950.7,1949.3,2.46991559]
[1771772339632,0.5738173,1950.7,1949.8,0.54807775]
[1771772339831,0.5738173,1950.4,1949.6,0.54807775]
[1771772343833,0.5738173,1950.3,1949.6,0.54807775]
[1771772344038,0.5738173,1950.3,1949.4,0.54807775]
[1771772347240,0.5738173,1950.2,1949.4,0.54807775]
[1771772358249,0.5738173,1950.2,1949.6,0.5543697]
[1771772360247,0.59746087,1950.3,1949.8,0.5543697]
[1771772363452,0.59746087,1950.6,1949.9,0.5543697]
[1771772365154,0.59746087,1950.6,1950.0,0.5543697]
[1771772375257,0.59746087,1950.6,1950.2,0.5543697]
[1771772375752,0.3421772,1950.8,1950.2,0.5543697]
[1771772378253,0.34789273,1951.0,1950.2,0.5543697]
[1771772381355,1.17875876,1950.9,1950.2,0.5543697]
[1771772381559,0.34462949,1950.8,1950.2,0.5543697]
[1771772387564,0.3689455,1951.1,1950.7,0.56132261]
[1771772387863,0.3689455,1951.1,1950.7,0.56666996]
[1771772390464,0.00630958,1951.1,1950.7,0.56666996]
[1771772390868,0.36035357,1950.8,1950.3,0.56132261]
[1771772391064,1.53911233,1950.9,1950.3,0.56132261]
[1771772391263,0.36035357,1950.8,1950.3,0.56132261]
[1771772391868,0.36035357,1950.8,1950.3,0.56739458]
[1771772394569,0.42699145,1950.9,1950.4,0.56132261]
[1771772394764,0.42699145,1951.0,1950.4,0.56132261]
[1771772395172,1.61205979,1951.1,1950.4,0.56132261]
[1771772395671,0.43330103,1951.1,1950.4,0.56132261]
[1771772397680,0.43330103,1951.1,1950.5,0.56132261]
[1771772400878,0.44352122,1951.0,1950.5,0.56132261]
[1771772401776,0.44343739,1950.8,1950.4,6.99787723]
[1771772401977,0.44343739,1950.8,1950.5,0.56132261]
[1771772402875,0.44343739,1950.8,1950.3,6.44262659]
[1771772403072,0.44343739,1950.8,1950.4,0.56132261]
[1771772404380,0.44343739,1950.8,1950.5,0.56132261]
[1771772406876,0.00630958,1951.1,1950.5,0.56132261]
[1771772407080,0.00630958,1951.1,1950.7,0.56132261]
[1771772409581,0.44266741,1951.3,1950.7,0.56132261]
[1771772410586,0.44730083,1951.3,1950.7,0.56132261]
[1771772414484,0.00463342,1951.3,1950.7,0.56132261]
[1771772415684,0.00463342,1951.3,1950.6,1.17875876]
[1771772415685,1.17875876,1950.9,1950.6,0.58037439]
[1771772415884,0.43009926,1951.0,1950.6,0.58037439]
[1771772416383,1.61349144,1951.3,1950.6,0.58037439]
[1771772416585,0.00463342,1951.3,1950.9,0.58037439]
[1771772418291,0.45779981,1951.3,1950.9,0.58037439]
[1771772424494,0.00463342,1951.3,1950.9,0.58037439]
[1771772426396,0.45929532,1951.3,1950.9,0.58037439]
[1771772426599,0.00463342,1951.3,1950.9,0.58037439]
[1771772428002,0.45931889,1951.3,1950.9,0.58037439]
[1771772428199,0.45931889,1951.3,1950.8,0.58037439]
[1771772430399,0.00463342,1951.3,1950.8,0.58037439]
[1771772430900,0.46081502,1951.3,1950.8,0.58037439]
[1771772437006,0.00463342,1951.3,1950.8,0.58037439]
[1771772437409,0.45503169,1951.3,1950.8,0.58037439]
[1771772437601,0.00463342,1951.3,1950.8,0.58037439]
[1771772438004,0.45503169,1951.3,1950.8,0.58037439]
[1771772439202,0.00463342,1951.3,1950.8,0.58037439]
[1771772441212,0.00463342,1951.3,1950.9,0.59898394]
[1771772441808,0.00463342,1951.3,1950.7,0.59898394]
[1771772441809,0.4573183,1951.2,1950.7,0.59898394]
[1771772443218,0.4573183,1951.2,1950.6,0.59898394]
[1771772447920,0.4573183,1951.2,1950.4,6.43655462]
[1771772448213,0.4573183,1951.2,1950.4,7.03553856]
[1771772448419,0.4573183,1951.2,1950.5,0.59898394]
[1771772449518,0.00463342,1951.3,1950.5,0.59898394]
[1771772449719,0.50562552,1951.3,1950.5,0.59898394]
[1771772451726,0.50562552,1951.3,1950.6,0.59898394]
[1771772453623,0.50103656,1951.1,1950.5,0.59898394]
[1771772460731,0.50103656,1951.1,1950.4,0.59898394]
[1771772463930,0.50297006,1950.8,1950.3,0.00607197]
[1771772464333,0.50297006,1950.8,1950.3,0.60505591]
[1771772465633,0.50297006,1950.8,1950.3,0.00607197]
[1771772467137,0.50297006,1950.8,1950.3,0.60505591]
[1771772472241,0.46269993,1951.0,1950.3,0.60505591]
[1771772472941,0.46269993,1950.6,1950.1,0.60303127]
[1771772474140,0.46269993,1950.6,1950.1,0.60740546]
[1771772474742,0.46269993,1950.6,1950.1,0.00437419]
[1771772474940,0.46269993,1950.6,1950.1,0.60042422]
[1771772477343,1.63999029,1950.5,1950.1,0.60042422]
[1771772478940,0.46152136,1950.5,1950.1,0.60042422]
[1771772482043,0.44723906,1950.9,1950.1,0.60042422]
[1771772482248,0.44723906,1950.9,1950.3,0.59605003]
[1771772482645,40.8,1950.8,1950.3,0.59605003]
[1771772482850,0.44723906,1951.0,1950.3,0.59605003]
[1771772483240,41.24723906,1951.0,1950.3,0.59605003]
[1771772485350,0.44723906,1951.0,1950.3,0.59605003]
[1771772489953,0.44458411,1950.8,1950.3,0.59605003]
[1771772491351,0.44458411,1950.8,1950.2,0.59605003]
[1771772491554,0.45001619,1950.5,1950.1,0.60042422]
[1771772493457,0.45074778,1950.9,1950.1,0.60042422]
[1771772493656,0.45074778,1950.7,1950.1,0.60042422]
[1771772496962,0.45244679,1950.5,1950.1,0.60042422]
[1771772507468,1.17846893,1950.6,1950.1,0.60042422]
[1771772508071,1.62038031,1950.6,1950.1,0.60042422]
[1771772508673,0.44191138,1950.5,1950.1,0.60042422]
[1771772510874,4.30063212,1950.9,1950.1,0.60042422]
[1771772511076,4.99997768,1951.0,1950.1,0.60042422]
[1771772511276,0.44299556,1950.9,1950.1,0.60042422]
[1771772512376,4.73282222,1951.0,1950.3,0.59532636]
[1771772512678,0.4321901,1951.0,1950.3,0.59532636]
[1771772515482,1.59498616,1950.8,1950.3,0.59532636]
[1771772517081,0.41651723,1950.8,1950.3,0.59532636]
[1771772522784,0.39752562,1950.9,1950.3,0.59532636]
[1771772524685,41.97846893,1951.1,1950.6,0.59532636]
[1771772524686,0.39745193,1951.0,1950.6,0.59532636]
[1771772524877,0.39745193,1951.0,1950.3,0.59532636]
[1771772525080,0.39745193,1950.8,1950.3,0.59532636]
[1771772538391,0.39564307,1950.6,1950.1,0.60452611]
[1771772540891,0.39087717,1950.9,1950.1,0.60452611]
[1771772541292,0.39087717,1950.8,1950.1,0.60452611]
[1771772544496,0.38694941,1950.7,1950.1,0.60452611]
[1771772545785,0.59490526,1950.5,1950.0,0.60015192]
[1771772546790,0.59490526,1950.5,1950.0,0.60609383]
[1771772549390,0.59490526,1950.5,1950.0,0.00594191]
[1771772549592,0.59490526,1950.5,1949.9,0.60015192]
[1771772550594,0.59490526,1950.5,1949.9,0.60606696]
[1771772551396,1.17828031,1950.6,1949.9,0.60606696]
[1771772551591,1.77318557,1950.6,1949.9,0.60606696]
[1771772551797,0.59490526,1950.5,1949.9,0.60606696]
[1771772581726,4.29256083,1950.6,1949.9,0.60606696]
[1771772582021,4.29256083,1950.8,1950.0,0.56957464]
[1771772582722,4.87176627,1950.8,1950.0,0.56957464]
[1771772584024,0.57920544,1950.8,1950.0,0.56957464]
[1771772586725,0.57920544,1950.8,1950.1,0.56957464]
[1771772588427,0.59415934,1951.0,1950.1,0.56957464]
[1771772589933,0.59415934,1951.0,1950.3,0.55875312]
[1771772598434,0.55835279,1950.9,1950.3,0.55875312]
[1771772599239,0.55835279,1950.7,1950.3,0.55875312]
[1771772599436,0.55835279,1950.9,1950.3,0.55875312]
[1771772602640,0.55835279,1951.0,1950.4,0.58603072]
[1771772605239,0.55835279,1951.1,1950.5,0.58603072]
[1771772606341,41.35835279,1951.2,1950.5,0.58603072]
[1771772606542,0.55835279,1951.2,1950.5,0.58603072]
[1771772610746,1.73649508,1951.1,1950.5,0.58603072]
[1771772614044,1.73649508,1950.7,1950.4,0.58603072]
[1771772614948,0.55835279,1950.6,1950.1,4.87824048]
[1771772615144,0.55835279,1950.6,1950.2,0.58603072]
[1771772624355,0.55194098,1950.7,1950.2,0.58603072]
[1771772625356,0.55194098,1950.5,1950.1,4.29220976]
[1771772625555,0.55194098,1950.3,1949.9,0.56908083]
[1771772637466,0.55194098,1950.5,1949.9,0.56908083]
[1771772638064,0.55194098,1950.4,1949.9,0.56908083]
[1771772640868,0.55194098,1950.0,1949.6,0.56316579]
[1771772641968,0.55194098,1950.0,1949.6,0.56773124]
[1771772642169,0.55194098,1950.0,1949.6,0.00456545]
[1771772642569,0.55194098,1950.0,1949.6,0.56773124]
[1771772643471,0.55194098,1950.0,1949.6,0.00456545]
[1771772644470,0.55194098,1950.0,1949.6,0.56773124]
[1771772646068,0.55194098,1950.0,1949.6,0.00456545]
[1771772646572,0.55194098,1950.0,1949.6,0.56773124]
[1771772648474,0.55194098,1950.0,1949.6,0.00456545]
[1771772649476,1.43456229,1950.5,1949.1,7.61469691]
[1771772649477,0.59571008,1949.8,1949.3,0.5648092]
[1771772650679,0.5997294,1949.8,1949.3,0.56928777]
[1771772655384,0.00401932,1949.8,1949.3,0.56928777]
[1771772656684,45.09577188,1950.4,1949.3,0.56928777]
[1771772656685,0.56266826,1950.3,1949.6,0.56522282]
[1771772657082,0.56266826,1950.2,1949.6,0.56522282]
[1771772657483,0.56772424,1950.2,1949.6,0.56522282]
[1771772661487,0.00505598,1950.2,1949.8,0.56522282]
[1771772661690,40.8,1950.4,1949.8,0.56522282]
[1771772662289,41.36266826,1950.4,1949.8,0.56522282]
[1771772662690,41.36776297,1950.4,1949.8,0.56522282]
[1771772662994,0.56776297,1950.4,1949.8,0.56522282]
[1771772663194,0.00509471,1950.4,1949.8,0.56522282]
[1771772667093,41.36266826,1950.7,1949.8,0.56522282]
[1771772667293,0.56266826,1950.7,1949.9,0.56522282]
[1771772668296,0.56881865,1950.7,1949.9,0.56522282]
[1771772671296,13.14929826,1951.4,1950.5,0.56522282]
[1771772671297,0.56266826,1951.4,1950.5,0.56522282]
[1771772672398,0.56715467,1951.4,1950.5,0.56522282]
[1771772686509,0.55986454,1951.2,1950.5,0.56522282]
[1771772701420,0.55986454,1951.2,1950.5,7.00177744]
[1771772703722,0.55986454,1951.2,1950.6,0.56034584]
[1771772709821,0.55986454,1951.2,1950.6,6.99690046]
[1771772710021,0.55986454,1951.2,1950.7,0.55430525]
[1771772710222,0.55986454,1951.2,1950.7,0.55800139]
[1771772711629,0.56965621,1951.4,1950.7,0.55800139]
[1771772711926,0.56965621,1951.4,1950.8,0.55430525]
[1771772725441,0.54622181,1950.8,1950.4,6.43655462]
[1771772725740,0.54622181,1950.8,1950.3,0.55487719]
[1771772726440,0.54622181,1950.8,1950.3,0.56091024]
[1771772727438,1.17731105,1951.1,1950.3,0.56091024]
[1771772727639,0.54622181,1950.9,1950.3,0.56091024]
[1771772729142,1.17731105,1951.1,1950.4,0.55487719]
[1771772729143,0.54622181,1951.1,1950.4,0.55487719]
[1771772729434,0.54622181,1951.2,1950.6,0.55487719]
[1771772731835,0.54622181,1951.2,1950.5,1.17731105]
[1771772731836,0.54622181,1951.3,1950.8,0.55487719]
[1771772735944,0.54622181,1951.2,1950.6,0.55487719]
[1771772736147,0.54622181,1951.0,1950.6,0.55487719]
[1771772736747,0.54622181,1950.8,1950.4,0.55487719]
[1771772737148,0.54622181,1950.8,1950.3,0.56091024]
[1771772737149,0.54622181,1950.7,1950.3,0.56091024]
[1771772737449,0.54622181,1950.5,1950.3,0.00603305]
[1771772737754,0.54622181,1950.7,1950.1,0.55487719]
[1771772738653,0.54622181,1950.7,1950.1,0.5601232]
[1771772765355,4.29506487,1951.0,1950.5,0.57688452]
[1771772765356,0.56574054,1951.0,1950.5,0.57688452]
[1771772767360,0.56574054,1950.8,1950.3,0.57688452]
[1771772774567,0.55478951,1951.0,1950.3,0.57688452]
[1771772774773,6.37036193,1950.9,1950.3,0.57688452]
[1771772774971,0.55478951,1950.9,1950.3,0.57688452]
[1771772775872,0.55478951,1950.8,1950.3,0.57688452]
[1771772782481,5.47237592,1951.1,1950.1,0.00524601]
[1771772782482,0.55478951,1950.6,1950.2,0.599621]
[1771772785383,0.55478951,1950.9,1950.2,0.599621]
[1771772785578,5.47332008,1951.0,1950.1,0.00524601]
[1771772785579,0.55478951,1950.6,1950.1,0.00524601]
[1771772785780,0.55478951,1950.4,1949.6,0.599621]
[1771772786082,0.55478951,1950.3,1949.6,0.599621]
[1771772786783,0.55478951,1950.3,1949.6,0.60549128]
[1771772792682,0.55478951,1950.5,1949.6,0.60549128]
[1771772801088,0.56158851,1950.7,1949.8,0.58652005]
[1771772806399,0.56158851,1950.5,1949.8,0.58652005]
[1771772808694,0.56158851,1950.4,1949.6,0.59239033]
[1771772809200,0.56158851,1950.2,1949.6,0.59239033]
[1771772812601,0.56158851,1950.2,1949.6,0.00587028]
[1771772812793,0.56158851,1950.2,1949.3,0.58652005]
[1771772812794,0.56158851,1950.1,1949.3,0.58652005]
[1771772812994,0.56158851,1949.8,1949.4,1e-08]
[1771772813197,0.56158851,1949.8,1948.6,8.05593354]
[1771772813796,0.56785483,1949.8,1948.6,8.06180891]
[1771772817506,0.56785483,1949.8,1948.7,1.17825521]
[1771772818805,0.56785483,1949.8,1948.7,9.23418875]
[1771772819105,0.56785483,1949.8,1948.7,1.17825521]
[1771772819704,0.56785483,1949.8,1948.7,9.23418875]
[1771772820499,0.56158851,1949.5,1948.6,0.00587537]
[1771772820895,0.56158851,1948.6,1947.5,8.05593354]
[1771772821099,5.80346506,1949.5,1947.2,8.05593354]
[1771772821100,0.56158851,1948.3,1947.2,8.05593354]
[1771772821301,0.56158851,1948.3,1946.8,0.61963092]
[1771772821499,0.56158851,1948.3,1947.0,9.20764846]
[1771772821703,0.56158851,1948.3,1947.0,1.17825521]
[1771772821905,0.56158851,1948.6,1947.6,1.17825521]
[1771772822304,0.56787347,1948.6,1947.6,0.0061508]
[1771772823206,0.56787347,1948.6,1947.6,1.18440601]
[1771772831022,0.57649703,1948.9,1947.9,1.17825521]
[1771772831917,0.58059791,1948.9,1947.6,6.31440601]
[1771772832428,0.58059791,1948.9,1947.7,6.7882681]
[1771772832720,0.58059791,1948.9,1947.6,1.18440601]
[1771772835327,0.58059791,1948.9,1947.6,0.0061508]
[1771772840429,0.58059791,1948.9,1947.7,0.18919883]
[1771772841025,0.5691899,1948.5,1947.6,0.0061508]
[1771772841327,0.5691899,1948.5,1947.3,0.18919883]
[1771772841924,0.5691899,1948.3,1947.3,0.18919883]
[1771772842227,0.5691899,1948.3,1947.3,0.00573219]
[1771772843519,0.5691899,1948.1,1947.3,0.00573219]
[1771772844532,0.5691899,1948.1,1947.3,0.18075372]
[1771772847728,0.5691899,1948.4,1947.3,0.18075372]
[1771772849336,0.5691899,1948.4,1947.4,0.17173954]
[1771772853642,0.5691899,1948.1,1947.3,0.00573219]
[1771772854740,0.5691899,1948.1,1947.3,0.1714318]
[1771772855242,0.5691899,1948.1,1947.3,0.00573219]
[1771772855541,0.5691899,1947.9,1947.3,0.00573219]
[1771772856046,0.5691899,1947.9,1947.3,0.17831336]
[1771772856241,0.5691899,1947.9,1947.3,0.00573219]
[1771772856841,0.5691899,1947.9,1947.3,0.17831336]
[1771772857244,0.5691899,1948.3,1947.3,0.17831336]
[1771772859047,0.5691899,1948.3,1947.5,0.1819833]
[1771772860344,0.59409238,1948.9,1947.5,0.1819833]
[1771772860543,0.59409238,1948.9,1948.1,0.1649583]
[1771772861353,0.59409238,1948.9,1947.7,0.1649583]
[1771772863050,0.5899915,1948.8,1947.5,0.16574614]
[1771772865550,0.5899915,1948.6,1947.5,0.16574614]
[1771772866353,0.5899915,1948.6,1947.3,0.00573219]
[1771772866549,0.5899915,1948.5,1947.3,0.18206263]
[1771772866752,0.5899915,1948.4,1947.3,0.00573219]
[1771772867350,40.8,1948.5,1947.3,0.00573219]
[1771772867351,0.5899915,1948.2,1947.3,0.00573219]
[1771772868452,0.5899915,1947.9,1946.8,0.17325771]
[1771772869460,0.5899915,1947.6,1946.8,0.00587083]
[1771772869758,0.5899915,1947.6,1946.4,0.17605763]
[1771772870654,0.5899915,1947.6,1946.4,0.18069426]
[1771772870959,6.4012081,1948.2,1946.4,0.18069426]
[1771772870960,0.5899915,1948.1,1947.2,0.18192846]
[1771772871154,0.5899915,1948.3,1947.5,0.18192846]
[1771772872260,0.5899915,1948.3,1947.4,0.18779724]
[1771772878460,0.5899915,1948.3,1947.1,0.19820234]
[1771772879660,0.5899915,1948.3,1947.3,0.1975246]
[1771772881064,0.5899915,1948.3,1947.2,0.4543646]
[1771772881262,0.5899915,1948.3,1947.2,0.1975246]
[1771772882667,0.5899915,1948.3,1947.3,0.19708128]
[1771772885371,0.5899915,1948.3,1947.1,2.02889253]
[1771772885372,0.5899915,1948.3,1947.5,0.19435908]
[1771772887975,0.5899915,1948.3,1947.4,1.77203253]
[1771772887976,0.5899915,1948.3,1947.7,0.17844639]
[1771772890578,0.60151396,1948.7,1947.7,0.17844639]
[1771772891575,0.60151396,1948.7,1947.8,0.16483659]
[1771772891776,0.60151396,1948.7,1947.8,0.17102424]
[1771772894076,0.60561484,1948.9,1947.8,0.17102424]
[1771772894279,0.60561484,1948.9,1948.2,0.13398432]
[1771772899083,0.00410088,1948.9,1948.2,0.13398432]
[1771772899287,0.00223566,1949.1,1948.2,0.13398432]
[1771772899582,0.00223566,1949.1,1948.3,0.54810481]
[1771772900188,0.00755494,1949.1,1948.3,0.54810481]
[1771772903082,0.00531928,1949.1,1948.5,0.54810481]
[1771772904183,0.6005726,1949.1,1948.5,0.54810481]
[1771772907586,0.6005726,1949.1,1948.2,0.54810481]
[1771772910686,0.59525332,1948.9,1947.9,0.54810481]
[1771772910986,0.59525332,1948.9,1947.8,0.55429246]
[1771772934103,0.59525332,1948.9,1947.9,0.57143436]
[1771772934700,0.58052975,1949.1,1948.1,0.57143436]
[1771772934902,0.58052975,1949.1,1948.2,0.57143436]
[1771772936903,0.57521047,1948.9,1948.1,8.02939325]
[1771772937099,0.57521047,1948.7,1947.9,0.57143436]
[1771772937903,0.57521047,1948.7,1947.8,0.00618765]
[1771772938804,0.57521047,1948.7,1947.8,0.57762201]
[1771772947511,0.57521047,1949.0,1947.8,0.57762201]
[1771772947711,0.57521047,1949.0,1947.9,0.57143436]
[1771772947911,0.57521047,1949.0,1948.0,0.57143436]
[1771772948109,0.57224744,1949.1,1948.0,0.57143436]
[1771772948611,0.57224744,1949.1,1948.2,0.57250858]
[1771772949109,0.57224744,1949.1,1948.2,0.49167095]
[1771772949304,0.00531928,1949.1,1948.2,0.49167095]
[1771772949502,0.00531928,1949.1,1948.2,8.5210642]
[1771772949706,0.00531928,1949.1,1948.3,0.57250858]
[1771772950108,0.00531928,1949.1,1948.5,0.57250858]
[1771772951911,0.57224744,1949.1,1948.5,0.57250858]
[1771772956916,0.57224744,1949.1,1948.3,0.56794087]
[1771772965116,0.58796617,1949.5,1948.5,0.56794087]
[1771772966121,0.59277049,1949.5,1948.5,0.56794087]
[1771772966417,0.59277049,1949.5,1948.2,0.56794087]
[1771772971229,0.58796617,1949.2,1948.5,0.56794087]
[1771772972734,0.58796617,1949.2,1948.3,0.56794087]
[1771772972935,0.58796617,1949.0,1948.3,0.56794087]
[1771772974527,0.58796617,1949.0,1948.5,0.56794087]
[1771772976435,0.58796617,1949.2,1948.5,0.56794087]
[1771772976635,0.58796617,1949.2,1948.7,0.56794087]
[1771772980533,0.58796617,1949.2,1948.4,0.55744785]
[1771772997153,0.58796617,1949.2,1948.4,8.59832249]
[1771772997451,0.58796617,1949.2,1948.7,0.55744785]
[1771772998252,0.00480432,1949.5,1948.6,1.17957109]
[1771772998253,0.56528678,1949.5,1948.9,0.55744785]
[1771773002558,0.56528678,1949.5,1949.1,0.55744785]
[1771773003054,0.56528678,1949.5,1949.0,0.55744785]
[1771773004560,0.56528678,1949.5,1948.8,0.55744785]
[1771773004749,0.56528678,1949.5,1948.7,0.55744785]
[1771773013363,0.56528678,1949.5,1948.8,1.17957109]
[1771773013565,0.56528678,1949.5,1948.9,0.57333356]
[1771773020271,0.00480432,1949.5,1949.1,0.54873398]
[1771773020469,0.56563107,1949.6,1949.1,0.54873398]
[1771773020973,1.17957109,1949.9,1949.5,0.54873398]
[1771773020974,0.56563107,1949.9,1949.5,0.54873398]
[1771773021474,0.5697664,1949.9,1949.5,0.55245996]
[1771773026076,0.00413533,1949.9,1949.5,0.55245996]
[1771773027075,0.56563107,1950.0,1949.5,0.55245996]
[1771773027274,0.56563107,1950.0,1949.6,0.54873398]
[1771773027979,0.56563107,1950.0,1949.5,0.00372598]